bitfinex/quotes_ETHUSD_20251021
["timestamp","ask_amount","ask_price","bid_price","bid_amount"]
[1761040320548,25.85365346,3873.2,3873.1,0.002]
[1761040320866,25.95265346,3873.2,3873.1,0.002]
[1761040321167,17.9263946,3873.2,3873.1,0.002]
[1761040321353,10.08357446,3873.2,3873.1,0.002]
[1761040321661,10.18711703,3873.2,3873.1,0.002]
[1761040323575,25.17591803,3873.2,3873.1,0.002]
[1761040323870,22.32618317,3873.2,3873.1,0.002]
[1761040324238,22.2226406,3873.2,3873.1,0.002]
[1761040324767,24.3016736,3873.2,3873.1,0.002]
[1761040325560,18.8797606,3873.2,3873.1,0.002]
[1761040325957,18.3645006,3873.2,3873.1,0.002]
[1761040326767,18.9562806,3873.2,3873.1,0.002]
[1761040326970,10.7726286,3873.2,3873.1,0.002]
[1761040327169,10.08357446,3873.2,3873.1,0.002]
[1761040328472,12.33374846,3873.2,3873.1,0.002]
[1761040328673,10.08357446,3873.2,3873.1,0.002]
[1761040329572,1.728,3873.2,3873.1,0.002]
[1761040329791,1.728,3873.2,3873.1,0.6821]
[1761040331144,4.30984446,3873.2,3873.1,0.6821]
[1761040331360,1.728,3873.2,3873.1,0.6821]
[1761040331745,1.728,3873.2,3873.1,1.3642]
[1761040332484,1.728,3873.2,3873.1,3.94611113]
[1761040332780,0.001,3873.3,3873.2,2.58184446]
[1761040332977,0.001,3873.3,3873.2,3.0597629]
[1761040333160,0.001,3873.3,3873.2,3.03394446]
[1761040333348,0.001,3873.3,3873.2,0.4521]
[1761040333877,0.001,3873.3,3873.2,3.17056446]
[1761040335669,0.001,3873.3,3873.2,3.03394446]
[1761040336991,0.001,3873.3,3873.2,3.16274446]
[1761040337169,0.001,3873.3,3873.2,3.1885629]
[1761040337366,0.001,3873.3,3873.2,3.16274446]
[1761040342312,0.001,3873.3,3873.2,2.71064446]
[1761040342606,0.001,3873.3,3873.2,3.17444446]
[1761040343990,0.001,3873.3,3873.2,0.1288]
[1761040344188,0.001,3873.3,3873.2,0.5926]
[1761040344515,0.001,3873.3,3873.2,3.77328819]
[1761040344715,0.001,3873.3,3873.2,3.17444446]
[1761040350044,0.001,3873.3,3873.2,3.2002629]
[1761040350246,0.001,3873.3,3873.2,3.17444446]
[1761040350418,0.001,3873.3,3873.2,3.2002629]
[1761040350616,0.001,3873.3,3873.2,3.17444446]
[1761040352658,0.001,3873.3,3873.2,0.5926]
[1761040353163,0.001,3873.3,3873.2,3.17444446]
[1761040355235,0.001,3873.3,3873.2,3.17574446]
[1761040369782,0.001,3873.3,3873.2,0.1288]
[1761040370683,0.001,3873.3,3873.2,2.71064446]
[1761040371077,0.001,3873.3,3873.2,0.1288]
[1761040371991,0.001,3873.3,3873.2,2.71064446]
[1761040372989,0.001,3873.3,3873.2,0.1288]
[1761040373194,0.001,3873.3,3873.2,3.67174483]
[1761040373566,0.001,3873.3,3873.2,3.64592639]
[1761040379230,0.001,3873.3,3873.2,3.67174483]
[1761040380522,0.001,3873.3,3873.2,3.64592639]
[1761040383131,0.001,3873.3,3873.2,3.77472639]
[1761040383496,0.001,3873.3,3873.2,3.30962639]
[1761040383698,0.001,3873.3,3873.2,3.78352639]
[1761040383935,0.001,3873.3,3873.2,3.30962639]
[1761040385021,0.001,3873.3,3873.2,3.78352639]
[1761040388210,0.001,3873.3,3873.2,3.30962639]
[1761040389043,0.001,3873.3,3873.2,2.71064446]
[1761040390849,0.001,3873.3,3873.2,0.1288]
[1761040391813,0.1,3873.3,3873.2,0.1288]
[1761040392014,2.68177781,3873.3,3873.2,0.1288]
[1761040392218,2.58184446,3873.2,3873.1,0.002]
[1761040392419,2.68084446,3873.2,3873.1,0.1308]
[1761040392614,9.16977666,3873.2,3873.1,0.002]
[1761040394132,10.89777666,3873.2,3873.1,0.002]
[1761040395553,11.40465666,3873.2,3873.1,0.002]
[1761040396059,10.89777666,3873.2,3873.1,0.002]
[1761040396266,1.728,3873.2,3873.1,0.002]
[1761040396465,4.30984446,3873.2,3873.1,0.002]
[1761040397369,4.40884446,3873.2,3873.1,0.002]
[1761040399368,10.89777666,3873.2,3873.1,0.002]
[1761040399783,10.79877666,3873.2,3873.1,0.002]
[1761040399943,10.89777666,3873.2,3873.1,0.002]
[1761040400274,4.40884446,3873.2,3873.1,0.002]
[1761040400638,10.89777666,3873.2,3873.1,0.002]
[1761040401159,10.79877666,3873.2,3873.1,0.002]
[1761040401344,10.89777666,3873.2,3873.1,0.002]
[1761040401680,4.30984446,3873.2,3873.1,0.002]
[1761040403877,4.40884446,3873.2,3873.1,0.002]
[1761040404196,4.30984446,3873.2,3873.1,0.002]
[1761040404503,2.68084446,3873.2,3873.1,0.002]
[1761040405682,4.40884446,3873.2,3873.1,0.002]
[1761040406075,4.30984446,3873.2,3873.1,0.002]
[1761040406381,4.43864446,3873.2,3873.1,0.002]
[1761040409771,4.30984446,3873.2,3873.1,0.002]
[1761040412899,4.40884446,3873.2,3873.1,0.002]
[1761040415033,4.30984446,3873.2,3873.1,0.002]
[1761040424433,1.728,3873.2,3873.1,0.6591]
[1761040425399,4.30984446,3873.2,3873.1,0.002]
[1761040426802,1.728,3873.2,3873.1,0.002]
[1761040427011,1.728,3873.2,3873.1,0.6591]
[1761040428133,4.30984446,3873.2,3873.1,0.002]
[1761040429708,1.728,3873.2,3873.1,0.4411]
[1761040429909,1.728,3873.2,3873.1,0.6591]
[1761040430239,0.001,3873.3,3873.1,0.6591]
[1761040430557,0.001,3873.3,3873.2,3.51275305]
[1761040431434,0.001,3873.3,3873.2,3.48693461]
[1761040438754,0.001,3873.3,3873.2,3.51275305]
[1761040438954,0.001,3873.3,3873.2,3.48693461]
[1761040439774,0.001,3873.3,3873.2,3.59042896]
[1761040440474,0.001,3873.3,3873.2,1.0085845]
[1761040440638,0.001,3873.3,3873.2,3.48693461]
[1761040441884,0.001,3873.3,3873.2,3.51275305]
[1761040443686,0.001,3873.3,3873.2,3.48693461]
[1761040444667,0.001,3873.3,3873.2,3.59043003]
[1761040445586,0.001,3873.3,3873.2,3.61624847]
[1761040445965,0.001,3873.3,3873.2,3.59043003]
[1761040451001,0.001,3873.3,3873.2,3.15133003]
[1761040451205,0.001,3873.3,3873.2,3.62533003]
[1761040453309,0.001,3873.3,3873.2,3.04783461]
[1761040453900,0.001,3873.3,3873.2,3.52183461]
[1761040455510,0.001,3873.3,3873.2,3.54765305]
[1761040455687,0.001,3873.3,3873.2,3.52183461]
[1761040458684,0.001,3873.3,3873.2,3.54765305]
[1761040458884,0.001,3873.3,3873.2,3.52183461]
[1761040459608,0.001,3873.3,3873.2,3.54765305]
[1761040459908,0.001,3873.3,3873.2,3.52183461]
[1761040460133,0.001,3873.3,3873.2,3.54765305]
[1761040460312,0.001,3873.3,3873.2,3.52183461]
[1761040466703,0.001,3873.3,3873.2,3.54765305]
[1761040469220,0.001,3873.3,3873.2,3.52183461]
[1761040469425,0.001,3873.3,3873.2,3.04783461]
[1761040469629,0.001,3873.3,3873.2,3.47543461]
[1761040471566,0.001,3873.3,3873.2,3.04783461]
[1761040471731,0.001,3873.3,3873.2,2.71064446]
[1761040476970,0.001,3873.3,3873.2,0.1288]
[1761040477138,0.1,3873.3,3873.2,0.1288]
[1761040477870,0.1,3873.3,3873.1,0.002]
[1761040477871,2.58184446,3873.2,3873.1,0.002]
[1761040478056,4.30984446,3873.2,3873.1,0.002]
[1761040478255,4.40884446,3873.2,3873.1,0.002]
[1761040479995,4.91572446,3873.2,3873.1,0.002]
[1761040480218,25.10642846,3873.2,3873.1,0.002]
[1761040481206,17.11870346,3873.2,3873.1,0.002]
[1761040481364,7.37794446,3873.2,3873.1,0.002]
[1761040481560,13.54472566,3873.2,3873.1,0.002]
[1761040482057,24.17182566,3873.2,3873.1,0.002]
[1761040482587,21.02727566,3873.2,3873.1,0.002]
[1761040482962,21.43226681,3873.2,3873.1,0.002]
[1761040483163,22.64742081,3873.2,3873.1,0.002]
[1761040483475,22.24242966,3873.2,3873.1,0.002]
[1761040484289,25.44659966,3873.2,3873.1,0.002]
[1761040484794,24.44659966,3873.2,3873.1,0.002]
[1761040485387,25.64018566,3873.2,3873.1,0.002]
[1761040486196,27.57633766,3873.2,3873.1,0.002]
[1761040486524,27.98133383,3873.2,3873.1,0.002]
[1761040486725,28.67038797,3873.2,3873.1,0.002]
[1761040487303,11.77740197,3873.2,3873.1,0.002]
[1761040487628,27.16906797,3873.2,3873.1,0.002]
[1761040488091,27.27262207,3873.2,3873.1,0.002]
[1761040488429,29.18853807,3873.2,3873.1,0.002]
[1761040488727,31.90853807,3873.2,3873.1,0.002]
[1761040489126,27.71988307,3873.2,3873.1,0.002]
[1761040489324,27.49491307,3873.2,3873.1,0.002]
[1761040489496,28.53506507,3873.2,3873.1,0.002]
[1761040489698,27.04554207,3873.2,3873.1,0.002]
[1761040490608,28.87344207,3873.2,3873.1,0.002]
[1761040491517,30.73342007,3873.2,3873.1,0.002]
[1761040491719,30.24635707,3873.2,3873.1,0.002]
[1761040492247,16.51963283,3873.2,3873.1,0.002]
[1761040492398,16.61863283,3873.2,3873.1,0.002]
[1761040492598,15.83700683,3873.2,3873.1,0.002]
[1761040493494,18.77746083,3873.2,3873.1,0.002]
[1761040494609,19.76867983,3873.2,3873.1,0.002]
[1761040495528,18.76370583,3873.2,3873.1,0.002]
[1761040495830,18.76079583,3873.2,3873.1,0.002]
[1761040496226,18.20339183,3873.2,3873.1,0.002]
[1761040496531,14.24224383,3873.2,3873.1,0.002]
[1761040496731,14.96832847,3873.2,3873.1,0.002]
[1761040497432,11.71543247,3873.2,3873.1,0.002]
[1761040498035,11.81443247,3873.2,3873.1,0.002]
[1761040498337,15.81019447,3873.2,3873.1,0.002]
[1761040498503,17.06830147,3873.2,3873.1,0.002]
[1761040499633,17.75530147,3873.2,3873.1,0.002]
[1761040500328,16.44019447,3873.2,3873.1,0.002]
[1761040500529,11.81443247,3873.2,3873.1,0.002]
[1761040500734,11.71543247,3873.2,3873.1,0.002]
[1761040500913,13.78649447,3873.2,3873.1,0.002]
[1761040501317,13.88549447,3873.2,3873.1,0.002]
[1761040501503,11.81443247,3873.2,3873.1,0.002]
[1761040501704,17.80210847,3873.2,3873.1,0.002]
[1761040502116,16.57462847,3873.2,3873.1,0.002]
[1761040502738,29.51634847,3873.2,3873.1,0.002]
[1761040502910,0.40499617,3873.2,3873.1,0.4741]
[1761040503104,0.001,3873.3,3873.1,0.8292]
[1761040503406,0.001,3873.3,3873.2,0.34131213]
[1761040503610,0.001,3873.3,3873.2,0.4721]
[1761040504619,0.001,3873.3,3873.2,3.05394446]
[1761040505938,0.001,3873.3,3873.2,0.4721]
[1761040506648,0.001,3873.3,3873.2,3.05394446]
[1761040509314,0.001,3873.3,3873.2,0.4721]
[1761040510451,0.001,3873.3,3873.2,1.09932463]
[1761040510747,0.001,3873.3,3873.2,3.68116909]
[1761040513356,0.001,3873.3,3873.2,3.80996909]
[1761040519943,0.001,3873.3,3873.2,3.83578753]
[1761040520348,0.001,3873.3,3873.2,3.80996909]
[1761040522470,0.001,3873.3,3873.2,1.22812463]
[1761040522764,0.001,3873.3,3873.2,0.1288]
[1761040523130,0.001,3873.3,3873.2,3.17194446]
[1761040524296,0.001,3873.3,3873.2,0.5901]
[1761040524668,0.001,3873.3,3873.2,3.17194446]
[1761040525709,0.001,3873.3,3873.2,3.1977629]
[1761040525867,0.001,3873.3,3873.2,4.44813804]
[1761040526671,0.001,3873.3,3873.2,4.4223196]
[1761040527071,0.001,3873.3,3873.2,3.17194446]
[1761040535368,0.001,3873.3,3873.2,0.1288]
[1761040535679,0.001,3873.3,3873.2,3.18454446]
[1761040554341,0.001,3873.3,3873.2,3.05574446]
[1761040554635,0.001,3873.3,3873.2,3.15923935]
[1761040554836,0.001,3873.3,3873.2,3.75638888]
[1761040560637,0.001,3873.3,3873.2,3.65289399]
[1761040561140,0.001,3873.3,3873.2,3.17899399]
[1761040562371,0.001,3873.3,3873.2,3.63519399]
[1761040564365,0.001,3873.3,3873.2,3.76399399]
[1761040564568,0.001,3873.3,3873.2,3.30779399]
[1761040566260,0.001,3873.3,3873.2,2.71064446]
[1761040566460,0.001,3873.3,3873.2,0.1288]
[1761040566674,0.1,3873.3,3873.2,0.1288]
[1761040566875,4.40977781,3873.3,3873.1,0.002]
[1761040567170,4.30984446,3873.2,3873.1,0.002]
[1761040567349,4.40884446,3873.2,3873.1,0.002]
[1761040569655,1.728,3873.2,3873.1,0.002]
[1761040569849,1.827,3873.2,3873.1,0.002]
[1761040570687,4.40884446,3873.2,3873.1,0.002]
[1761040570863,10.17586145,3873.2,3873.1,0.002]
[1761040571255,10.68274145,3873.2,3873.1,0.002]
[1761040575696,30.69289245,3873.2,3873.1,0.002]
[1761040576792,22.71307745,3873.2,3873.1,0.002]
[1761040577574,22.29670745,3873.2,3873.1,0.002]
[1761040577776,20.88778745,3873.2,3873.1,0.002]
[1761040578698,27.97148745,3873.2,3873.1,0.002]
[1761040578904,27.26848745,3873.2,3873.1,0.002]
[1761040579802,27.98648745,3873.2,3873.1,0.002]
[1761040580297,27.00018145,3873.2,3873.1,0.002]
[1761040580595,27.32594112,3873.2,3873.1,0.002]
[1761040580759,28.77670112,3873.2,3873.1,0.002]
[1761040580963,29.19936502,3873.2,3873.1,0.002]
[1761040581391,29.6044114,3873.2,3873.1,0.002]
[1761040581762,38.67337102,3873.2,3873.1,0.002]
[1761040582496,39.07841031,3873.2,3873.1,0.002]
[1761040582867,39.71448431,3873.2,3873.1,0.002]
[1761040583708,29.72095231,3873.2,3873.1,0.002]
[1761040583905,27.58034831,3873.2,3873.1,0.002]
[1761040584768,27.58034831,3873.2,3872.7,0.002]
[1761040584769,0.50688,3872.9,3872.7,0.002]
[1761040584985,34.07257893,3872.8,3872.7,0.002]
[1761040585194,17.00299712,3872.8,3872.7,0.002]
[1761040586001,19.13550012,3872.8,3872.7,0.002]
[1761040586305,16.17723012,3872.8,3872.7,0.002]
[1761040587110,24.52491512,3872.8,3872.7,0.002]
[1761040588003,27.58369612,3872.8,3872.7,0.002]
[1761040588785,25.85569612,3872.8,3872.7,0.002]
[1761040588987,26.11655412,3872.8,3872.7,0.002]
[1761040589981,27.33058012,3872.8,3872.7,0.002]
[1761040590203,26.78901412,3872.8,3872.7,0.002]
[1761040591184,26.11701412,3872.8,3872.7,0.002]
[1761040591997,10.68380812,3872.8,3872.7,0.002]
[1761040592197,26.11701412,3872.8,3872.7,0.002]
[1761040592404,24.58687212,3872.8,3872.7,0.002]
[1761040592609,22.53364212,3872.8,3872.7,0.002]
[1761040593219,24.20029912,3872.8,3872.7,0.002]
[1761040593787,24.52605879,3872.8,3872.7,0.002]
[1761040594020,24.84516993,3872.8,3872.7,0.002]
[1761040594191,31.44078171,3872.8,3872.7,0.002]
[1761040594389,37.2077987,3872.8,3872.7,0.002]
[1761040594602,37.61284429,3872.8,3872.7,0.002]
[1761040594797,37.2077987,3872.8,3872.7,0.002]
[1761040595297,35.9143247,3872.8,3872.7,0.002]
[1761040596416,36.3136417,3872.8,3872.7,0.002]
[1761040597515,36.0982647,3872.8,3872.7,0.002]
[1761040598185,25.02873571,3872.8,3872.7,0.002]
[1761040598389,30.63920671,3872.8,3872.7,0.002]
[1761040599345,33.60384471,3872.8,3872.7,0.002]
[1761040599747,34.0088901,3872.8,3872.7,0.002]
[1761040600318,33.5500931,3872.8,3872.7,0.002]
[1761040600820,33.1782791,3872.8,3872.7,0.002]
[1761040601219,38.94529609,3872.8,3872.7,0.002]
[1761040601422,44.27849809,3872.8,3872.7,0.002]
[1761040602119,38.5114811,3872.8,3872.7,0.002]
[1761040602541,39.6546281,3872.8,3872.7,0.002]
[1761040602951,46.0846281,3872.8,3872.7,0.002]
[1761040603351,46.0856281,3872.8,3872.7,0.002]
[1761040603846,44.2853391,3872.8,3872.7,0.002]
[1761040604753,45.8511731,3872.8,3872.7,0.002]
[1761040605725,54.03530909,3872.8,3872.7,0.002]
[1761040607679,3.08912448,3872.6,3872.5,0.002]
[1761040607829,28.83602448,3872.6,3872.5,0.002]
[1761040608035,29.26158415,3872.6,3872.5,0.002]
[1761040608560,29.66671621,3872.6,3872.5,0.002]
[1761040608769,11.67268415,3872.6,3872.5,0.002]
[1761040609073,35.85852373,3872.6,3872.5,0.002]
[1761040609850,35.76164673,3872.6,3872.5,0.002]
[1761040610669,35.86144673,3872.6,3872.5,0.002]
[1761040610867,38.27732973,3872.6,3872.5,0.002]
[1761040611365,38.18030387,3872.6,3872.5,0.002]
[1761040611662,38.28010387,3872.6,3872.5,0.002]
[1761040611871,40.61964887,3872.6,3872.5,0.002]
[1761040612164,40.24943087,3872.6,3872.5,0.002]
[1761040612464,29.39885187,3872.6,3872.5,0.002]
[1761040612866,40.58554487,3872.6,3872.5,0.002]
[1761040613064,39.98254487,3872.6,3872.5,0.002]
[1761040613238,32.92050187,3872.6,3872.5,0.002]
[1761040613437,32.81692229,3872.6,3872.5,0.002]
[1761040613848,11.99179529,3872.6,3872.5,0.002]
[1761040614045,39.40508829,3872.6,3872.5,0.002]
[1761040614262,23.56860685,3872.4,3872.0,0.009307]
[1761040614471,29.66138351,3872.4,3872.0,0.009307]
[1761040614674,29.76118351,3872.4,3872.0,0.009307]
[1761040614860,29.55142151,3872.4,3872.0,0.009307]
[1761040615259,29.87053265,3872.4,3872.0,0.009307]
[1761040615946,31.36788965,3872.4,3872.0,0.009307]
[1761040616981,33.80000765,3872.4,3872.0,0.009307]
[1761040617182,33.34676565,3872.4,3872.0,0.009307]
[1761040617478,32.82806565,3872.4,3872.0,0.009307]
[1761040617662,39.25806565,3872.4,3872.0,0.009307]
[1761040617870,38.22323865,3872.4,3872.0,0.009307]
[1761040618182,37.47955565,3872.4,3872.0,0.009307]
[1761040619171,32.88342465,3872.4,3872.0,0.009307]
[1761040619967,27.84953265,3872.4,3872.0,0.009307]
[1761040620246,28.96419165,3872.4,3872.0,0.009307]
[1761040620642,3.08939123,3872.2,3872.1,1e-08]
[1761040620957,29.2453619,3872.2,3872.1,1e-08]
[1761040621146,33.0581569,3872.2,3872.1,1e-08]
[1761040621345,26.31869362,3872.0,3871.9,1e-08]
[1761040621542,26.31869362,3872.0,3868.5,2.84367111]
[1761040621543,4.3113118,3871.0,3870.5,0.1288]
[1761040621775,10.93926309,3871.0,3870.9,0.6755]
[1761040621975,10.93926309,3871.0,3870.5,0.1288]
[1761040621976,2.58344528,3870.8,3870.7,0.4465]
[1761040622191,7.75663028,3870.8,3870.7,0.4465]
[1761040622371,22.42026828,3870.8,3870.7,0.4465]
[1761040622772,19.54218628,3870.8,3870.7,0.4465]
[1761040623374,19.44318628,3870.8,3870.7,0.4465]
[1761040623574,18.34718628,3870.8,3870.7,0.4465]
[1761040624163,13.65702628,3870.8,3870.7,0.4465]
[1761040624387,15.09064428,3870.8,3870.7,0.4465]
[1761040624892,4.94712528,3870.8,3870.7,0.4465]
[1761040625094,1.728,3870.8,3870.7,0.4465]
[1761040625863,4.31144528,3870.8,3870.7,0.4465]
[1761040626695,1.728,3870.8,3870.7,0.4465]
[1761040626990,4.31144528,3870.8,3870.7,0.4465]
[1761040629330,1.728,3870.8,3870.7,0.4465]
[1761040634417,4.31144528,3870.8,3870.7,0.4465]
[1761040636184,4.31144528,3870.8,3870.6,0.2161]
[1761040636185,4.31151202,3870.7,3870.6,0.2161]
[1761040636386,1.8568,3870.6,3869.9,0.1288]
[1761040636584,2.58383871,3870.3,3869.9,0.1288]
[1761040636817,2.58383871,3870.3,3870.0,0.4465]
[1761040637127,2.58384716,3870.2,3870.0,0.4465]
[1761040638212,1.728,3869.9,3869.8,0.2317]
[1761040638419,1.728,3870.0,3869.8,0.2317]
[1761040638725,2.58359256,3870.6,3869.9,0.4607]
[1761040638916,2.58373555,3870.4,3869.9,0.4607]
[1761040639425,1.728,3870.2,3869.9,0.4607]
[1761040640143,6.49915129,3871.1,3870.0,0.002]
[1761040640144,2.58391256,3870.1,3870.0,0.002]
[1761040640325,2.58391256,3870.1,3870.0,0.4627]
[1761040640627,2.58391256,3870.1,3870.0,0.9234]
[1761040642523,2.58388848,3870.2,3870.0,0.9234]
[1761040642715,2.58388848,3870.2,3870.1,0.4607]
[1761040645132,2.58391256,3870.1,3870.0,0.4627]
[1761040645431,2.58391256,3870.1,3870.0,0.9234]
[1761040645632,4.31191256,3870.1,3870.0,0.002]
[1761040646731,4.31191256,3870.1,3870.0,0.4627]
[1761040647835,4.31191256,3870.1,3870.0,0.002]
[1761040650023,4.81879256,3870.1,3870.0,0.002]
[1761040650206,12.96099737,3870.1,3870.0,0.002]
[1761040650405,13.36634888,3870.1,3870.0,0.002]
[1761040650910,12.96099737,3870.1,3870.0,0.002]
[1761040651105,21.40364237,3870.1,3870.0,0.002]
[1761040651438,21.18049437,3870.1,3870.0,0.002]
[1761040651603,17.99898737,3870.1,3870.0,0.002]
[1761040651821,7.38068556,3870.1,3870.0,0.002]
[1761040652347,8.91706456,3870.1,3870.0,0.002]
[1761040652547,7.76619356,3870.1,3870.0,0.002]
[1761040653259,6.89891756,3870.1,3870.0,0.002]
[1761040654427,6.95266856,3870.1,3870.0,0.002]
[1761040654630,7.12922256,3870.1,3870.0,0.002]
[1761040655131,4.81879256,3870.1,3870.0,0.002]
[1761040655331,6.91804056,3870.1,3870.0,0.002]
[1761040655527,14.80791985,3870.1,3870.0,0.002]
[1761040655740,14.80791985,3870.1,3870.0,0.465]
[1761040656427,17.35279685,3870.1,3870.0,0.465]
[1761040656732,11.31794385,3870.1,3870.0,0.465]
[1761040657455,14.44803585,3870.1,3870.0,0.465]
[1761040657931,13.66503585,3870.1,3870.0,0.465]
[1761040658960,13.41403585,3870.1,3870.0,0.465]
[1761040659161,11.31794385,3870.1,3870.0,0.465]
[1761040659377,14.21903585,3870.1,3870.0,0.465]
[1761040659534,14.41403585,3870.1,3870.0,0.465]
[1761040660563,14.40108885,3870.1,3870.0,0.465]
[1761040662263,7.90193756,3870.1,3870.0,0.002]
[1761040662467,13.91719585,3870.1,3870.0,0.002]
[1761040662672,11.31794385,3870.1,3870.0,0.002]
[1761040662835,15.78831585,3870.1,3870.0,0.002]
[1761040663441,16.43318666,3870.1,3870.0,0.002]
[1761040663840,23.49765166,3870.1,3870.0,0.002]
[1761040664059,23.90300988,3870.1,3870.0,0.002]
[1761040664275,21.44730088,3870.1,3870.0,0.002]
[1761040664575,21.04194266,3870.1,3870.0,0.002]
[1761040664773,22.38171066,3870.1,3870.0,0.002]
[1761040664938,19.62371066,3870.1,3870.0,0.002]
[1761040665843,21.31589766,3870.1,3870.0,0.002]
[1761040666874,23.23544066,3870.1,3870.0,0.002]
[1761040667282,16.77299766,3870.1,3870.0,0.002]
[1761040667483,17.17836252,3870.1,3870.0,0.002]
[1761040667673,15.40928552,3870.1,3870.0,0.002]
[1761040667872,15.74884452,3870.1,3870.0,0.002]
[1761040668990,12.36817952,3870.1,3870.0,0.002]
[1761040669177,15.74884452,3870.1,3870.0,0.002]
[1761040670193,16.44584452,3870.1,3870.0,0.002]
[1761040670789,14.99155952,3870.1,3870.0,0.002]
[1761040671178,15.00712252,3870.1,3870.0,0.002]
[1761040671380,14.36225171,3870.1,3870.0,0.002]
[1761040672387,14.25360871,3870.1,3870.0,0.002]
[1761040673255,15.68294771,3870.1,3870.0,0.002]
[1761040674291,11.72330871,3870.1,3870.0,0.002]
[1761040674518,15.13286971,3870.1,3870.0,0.002]
[1761040675288,21.79134271,3870.1,3870.0,0.002]
[1761040676510,28.39191171,3870.1,3870.0,0.002]
[1761040676703,26.41682771,3870.1,3870.0,0.002]
[1761040677414,26.50544171,3870.1,3870.0,0.002]
[1761040678317,11.72330871,3870.1,3870.0,0.002]
[1761040678491,28.38834171,3870.1,3870.0,0.002]
[1761040678688,27.34539271,3870.1,3870.0,0.002]
[1761040679912,11.82230871,3870.1,3870.0,0.002]
[1761040680218,15.24970828,3870.1,3870.0,0.002]
[1761040680388,15.15070828,3870.1,3870.0,0.002]
[1761040680587,15.89457909,3870.1,3870.0,0.002]
[1761040680895,20.96267206,3870.1,3870.0,0.002]
[1761040681293,20.86367206,3870.1,3870.0,0.002]
[1761040681804,17.43627249,3870.1,3870.0,0.002]
[1761040682716,17.53527249,3870.1,3870.0,0.002]
[1761040683302,17.43627249,3870.1,3870.0,0.002]
[1761040686436,20.86367206,3870.1,3870.0,0.002]
[1761040687937,15.08004993,3870.1,3870.0,0.002]
[1761040688241,2.98918636,3870.2,3870.0,0.002]
[1761040688242,0.40529788,3870.2,3870.0,0.4659]
[1761040688438,6.43,3871.1,3870.1,0.2322]
[1761040688439,2.58365095,3870.5,3870.1,0.2322]
[1761040688821,1.728,3870.5,3870.2,0.4639]
[1761040689134,1.728,3870.5,3870.2,1.24093197]
[1761040689327,0.1288,3870.4,3870.2,1.24093197]
[1761040689528,0.1288,3870.4,3870.3,0.6114132]
[1761040691151,1.8568,3870.4,3870.3,1.24093197]
[1761040691518,2.71251227,3870.4,3870.3,1.24093197]
[1761040691742,4.44051227,3870.4,3870.3,1.24093197]
[1761040694353,2.58384579,3870.2,3870.1,0.2322]
[1761040694518,8.36746792,3870.2,3870.1,0.6961]
[1761040700750,8.36746792,3870.2,3870.1,1.47321047]
[1761040703067,8.36746792,3870.2,3870.1,1.62073152]
[1761040703068,2.71264579,3870.2,3870.1,1.62073152]
[1761040703270,0.1288,3870.2,3870.1,1.62073152]
[1761040704579,2.71264579,3870.2,3870.1,1.62073152]
[1761040705372,0.1288,3870.2,3870.1,1.62073152]
[1761040707160,2.71264579,3870.2,3870.1,1.62073152]
[1761040707479,2.71264579,3870.2,3870.1,1.47321047]
[1761040708187,2.71264579,3870.2,3870.1,1.47521047]
[1761040708476,2.71364579,3870.2,3870.1,1.47521047]
[1761040715100,0.1298,3870.2,3870.1,1.47521047]
[1761040716111,2.71364579,3870.2,3870.1,1.47521047]
[1761040724220,2.71364579,3870.2,3870.1,1.24301047]
[1761040724715,2.71364579,3870.2,3870.1,0.77911047]
[1761040725585,2.71364579,3870.2,3870.1,1.21731047]
[1761040727025,2.71364579,3870.2,3870.1,1.45081047]
[1761040728126,2.71364579,3870.2,3870.1,0.77911047]
[1761040741808,0.1298,3870.2,3870.1,0.77911047]
[1761040742031,0.1298,3870.2,3870.1,1.45761047]
[1761040742362,0.001,3870.2,3870.1,1.86197322]
[1761040743136,0.001,3870.2,3870.1,1.45761047]
[1761040748170,0.001,3870.2,3870.1,4.04152303]
[1761040748468,0.001,3870.2,3870.1,4.17032303]
[1761040749877,0.001,3870.2,3870.1,3.39321256]
[1761040753002,0.001,3870.2,3870.1,3.41905168]
[1761040753285,0.001,3870.2,3870.1,4.6826945]
[1761040758725,0.001,3870.2,3870.1,4.78626764]
[1761040768543,0.001,3870.2,3870.1,6.51426764]
[1761040768872,0.001,3870.2,3870.1,6.48842852]
[1761040777579,0.001,3870.2,3870.1,6.99530852]
[1761040777792,0.001,3870.2,3870.1,6.86650852]
[1761040787687,0.001,3870.2,3870.1,6.99530852]
[1761040789383,0.001,3870.2,3870.1,9.71930852]
[1761040790157,0.001,3870.2,3870.1,9.97830852]
[1761040800009,0.001,3870.2,3870.1,6.79370852]
[1761040800299,0.001,3870.2,3870.1,6.57580852]
[1761040800771,0.001,3870.2,3870.1,7.24470852]
[1761040801091,0.001,3870.6,3870.1,7.24470852]
[1761040801092,0.001,3870.6,3870.5,3.09052552]
[1761040801292,0.001,3871.9,3871.8,2.58277803]
[1761040801656,0.001,3871.9,3871.8,2.71157803]
[1761040801856,0.001,3871.9,3871.8,2.81510426]
[1761040802803,0.001,3871.9,3871.8,2.84093204]
[1761040803095,0.001,3871.9,3871.8,3.42729105]
[1761040804192,0.001,3871.9,3871.8,3.32376482]
[1761040805361,0.001,3871.9,3871.8,3.76356482]
[1761040805794,0.001,3871.9,3871.8,3.32376482]
[1761040806331,0.0935,3871.9,3871.8,3.29793704]
[1761040807105,0.0935,3871.9,3871.8,0.1288]